Cogmind - Beta 10.2 @@@ ROGUE MODE // 2021.06.30 @ 19:17:25 Player: Mares Result: Destroyed by D-53 Grenadier with Mini Grenade Launcher Performance ------------- Evolutions (0) 0 Regions Visited (2) 400 Robots Destroyed (40) 200 Value Destroyed (860) 860 Prototype IDs (3) 60 Alien Tech Used (0) 0 Bonus (-116) -116 TOTAL SCORE: 1404 Bonus ------- Follower Combat Kills 25 Friendly Fire -141 Cogmind --------- Core Integrity 0/250 Matter 285/300 Energy 93/100 System Corruption 0% Temperature Cool (0) Movement Rolling (130) Ox3 Location -10/Mines Parts ------- > --- POWER (1) -------- (None) > --- PROPULSION (2) --- Compact Wheel > --- UTILITY (2) ------ High-capacity Storage Unit High-capacity Storage Unit > --- WEAPON (2) ------- (None) > --- INVENTORY (20) --- Light Ion Engine Light Nuclear Core Wheel Improved Heat Sink Large Storage Unit Large Storage Unit Signal Interpreter Medium Armor Plating Medium Armor Plating Medium Armor Plating Medium Armor Plating Hacking Suite EM Pulse Gun Small Laser Rocket Launcher Rocket Launcher Rocket Launcher Mining Claw Peak State ------------ > --- POWER ------------ Ion Engine > --- PROPULSION ------- Light Treads Compact Wheel > --- UTILITY ---------- High-capacity Storage Unit High-capacity Storage Unit > --- WEAPON ----------- Assault Rifle Rocket Launcher > --- INVENTORY -------- Light Ion Engine Light Nuclear Core Wheel Improved Heat Sink Large Storage Unit Large Storage Unit Signal Interpreter Medium Armor Plating Medium Armor Plating Medium Armor Plating Medium Armor Plating Hacking Suite EM Pulse Gun Small Laser Small Laser Assault Rifle Assault Rifle Rocket Launcher Rocket Launcher Mining Claw [Rating: 11] Favorites ----------- Power Ion Engine Engine Ion Engine Propulsion Light Treads Treads Light Treads Wheel Compact Wheel Utility High-capacity Storage Unit Storage High-capacity Storage Unit Weapon Assault Rifle Energy Gun Small Laser Ballistic Gun Assault Rifle Launcher Rocket Launcher Build | -11 -10 -10 ------- Run | Scr Mat Min Slots Evolved . | . . . Power . | . . . Propulsion . | . . . Utility . | . . . Weapon . | . . . Parts Attached 25 | 6 10 9 Power 2 | 1 . 1 Engine 2 | 1 . 1 Core . | . . . Reactor . | . . . Propulsion 3 | 2 . 1 Treads 2 | 2 . . Leg . | . . . Wheel 1 | . . 1 Hover . | . . . Flight . | . . . Utility 6 | 1 5 . Device . | . . . Storage 6 | 1 5 . Processor . | . . . Hackware . | . . . Protection . | . . . Artifact . | . . . Weapon 14 | 2 5 7 Energy Gun 1 | . . 1 Energy Cannon . | . . . Ballistic Gun 10 | 2 4 4 Ballistic Cannon . | . . . Launcher 3 | . 1 2 Special Weapon . | . . . Impact Weapon . | . . . Slashing Weapon . | . . . Piercing Weapon . | . . . Special Melee Weapon . | . . . Unidentified Prototypes . | . . . Parts Lost 10 | . 1 9 Power 2 | . . 2 Propulsion 2 | . . 2 Utility . | . . . Weapon 6 | . 1 5 Highest Loss Streak 6 | . 1 6 Average Slot Usage (%) 98 | . 98 98 Engine 13 | . 14 13 Treads 23 | . 28 14 Wheel 4 | . . 12 Storage 27 | . 26 28 Ballistic Gun 25 | . 27 21 Launcher 2 | . . 6 Naked Turns . | . . . Heaviest Build 75 | 12 73 75 Greatest Support 40 | 40 40 40 Greatest Overweight (x) 4 | . 1 4 Average Overweight (x) 1 | . . 2 Largest Inventory Capacity 20 | 6 20 20 Average Capacity 17 | 5 17 20 Most Carried 20 | 6 20 20 Average Carried 16 | 4 15 19 Final Capacity 20 | 6 20 20 Final Carried 20 | 6 20 18 Class Distribution -------------------- 60% | Hauler-Mutant 39% | Mutant Dominant Class ---------------- Mutant | -10/Materials Hauler-Mutant | -10/Mines Resources | -11 -10 -10 ----------- Run | Scr Mat Min Matter Collected 999 | 268 505 226 Remotely . | . . . Salvage Created 1181 | 72 801 308 Parts 77 | 3 51 23 Haulers Intercepted 2 | . 2 . Recyclers Shooed . | . . . Parts Field Recycled . | . . . Retrieved Matter . | . . . Parts Self-Destructed . | . . . Prevented . | . . . Kills | -11 -10 -10 ------- Run | Scr Mat Min Combat Hostiles Destroyed 28 | . 15 13 Guns 17 | . 13 4 AOE 11 | . 2 9 Classes Destroyed 8 | 1 6 1 Worker 1 | . 1 . Hauler 2 | . 2 . Recycler 2 | 1 1 . Mechanic 1 | . . 1 Operator 2 | . 2 . Watcher 3 | . 3 . Swarmer 11 | . 3 8 Grunt 17 | . 12 5 Thug 1 | . . 1 Best Kill Streak 4 | 1 4 4 Combat Bots Only 4 | . 4 3 Max Kills in Single Turn 4 | 1 2 4 Gunslinging . | . . . Exploded 3 | . 2 3 Melee . | . . . Uniques/NPCs Destroyed . | . . . Combat | -11 -10 -10 -------- Run | Scr Mat Min Damage Taken 1542 | . 494 1048 Core 269 | . 56 213 Absorbed by Shields . | . . . Core Remaining (%) 100 | 100 . . Volleys Fired 109 | 2 83 24 Largest 2 | 2 2 2 Hottest 60 | 40 40 60 Shots Fired 213 | 4 164 45 Gun 203 | 4 162 37 Cannon . | . . . Launcher 10 | . 2 8 Special . | . . . Kinetic 202 | 4 162 36 Thermal 1 | . . 1 Explosive 10 | . 2 8 Electromagnetic . | . . . Robot Hit Streak 11 | 2 11 5 Robot Miss Streak 6 | 1 6 5 Penetration Max . | . . . Secondary Targets 2 | . 1 1 Max Gunslinging Chain 1 | . 1 1 Shots Hit Robots 125 | 3 98 24 Core Hits 67 | 2 41 24 Critical Hits . | . . . Critical Kills . | . . . Critical Parts Destroyed . | . . . Melee Attacks . | . . . Impact . | . . . Slashing . | . . . Piercing . | . . . Sneak Attacks . | . . . Combat Hostiles . | . . . Follow-up Attacks . | . . . Damage Inflicted 2177 | 47 1313 817 Guns 1421 | 47 1125 249 Cannons . | . . . Explosions 756 | . 188 568 Melee . | . . . Ramming . | . . . Kinetic 1421 | 47 1125 249 Thermal . | . . . Explosive 756 | . 188 568 Electromagnetic . | . . . Impact . | . . . Slashing . | . . . Piercing . | . . . Highest Corruption . | . . . Average Corruption . | . . . Corruption Purged . | . . . Overload Shots . | . . . Overflow Damage 69 | . 26 43 Projectiles . | . . . Explosions 69 | . 26 43 Melee . | . . . Knockbacks . | . . . Impact . | . . . Kinetic . | . . . Secondary . | . . . Self-Inflicted Damage 112 | . . 112 Shots 4 | . . 4 Rammed . | . . . Targets Rammed . | . . . Kicked . | . . . Crushed . | . . . Highest Temperature 12 | . 12 9 Average Temperature 4 | . 4 3 Received Heat Transfer 390 | . 240 150 Siege Activations . | . . . Robots Corrupted . | . . . Combat Hostiles . | . . . Parts Fried . | . . . Impact Corruptions . | . . . Robots Melted . | . . . Combat Hostiles . | . . . Parts Melted . | . . . Heat Transferred . | . . . Parts Sabotaged . | . . . Parts Stolen . | . . . Parts Stripped . | . . . Power Chain Reactions . | . . . Missiles Intercepted . | . . . Alert | -11 -10 -10 ------- Run | Scr Mat Min Peak Influence 365 | 5 247 365 Initial 90 | . 3 90 Average 147 | 2 130 211 Maximum Alert Level 1 | . 1 1 Low Security (%) 63 | 100 70 41 Level 1 36 | . 29 58 Level 2 . | . . . Level 3 . | . . . Level 4 . | . . . Level 5 . | . . . High Security . | . . . Max Security . | . . . Squads Dispatched 6 | . 5 1 Investigation 3 | . 3 . Extermination . | . . . Reinforcement 2 | . 2 . Assault 1 | . . 1 Garrison . | . . . Intercept . | . . . Construction Impeded . | . . . Haulers Reinforced . | . . . Stealth | -11 -10 -10 --------- Run | Scr Mat Min Distress Signals 1 | . 1 . Communications Jammed . | . . . Distress Signals . | . . . Times Spotted 49 | . 31 18 Peak Tracking Total 4 | . 4 4 Tactical Retreats 1 | . . 1 Traps | -11 -10 -10 ------- Run | Scr Mat Min Traps Triggered . | . . . Indirectly . | . . . Trap Hack Attempts . | . . . Triggered . | . . . Disarmed . | . . . Reprogrammed . | . . . Reused . | . . . Traps Extracted . | . . . Installed . | . . . Triggered . | . . . Machines | -11 -10 -10 ---------- Run | Scr Mat Min Machines Disabled 1 | . . 1 Max in Single Turn 1 | . . 1 Machines Sabotaged . | . . . Garrisons Compromised . | . . . Overloaded Fab Kills . | . . . Fab Network Shutdowns . | . . . Hacking | -11 -10 -10 --------- Run | Scr Mat Min Machines Accessed 5 | . 5 . Terminals 3 | . 3 . Fabricators . | . . . Repair Stations . | . . . Recycling Units 2 | . 2 . Scanalyzers . | . . . Garrison Access . | . . . Total Hacks 13 | . 13 . Successful 8 | . 8 . Failed 5 | . 5 . Catastrophic . | . . . Database Lockouts . | . . . Manual 12 | . 12 . Terminals 11 | . 11 . Fabricators . | . . . Repair Stations . | . . . Recycling Units 2 | . 2 . Scanalyzers . | . . . Garrison Access . | . . . Terminal Hacks 2 | . 2 . Part Schematic 1 | . 1 . Prototype ID Bank 1 | . 1 . Fabricator Hacks . | . . . Repair Station Hacks . | . . . Recycling Unit Hacks . | . . . Scanalyzer . | . . . Garrison Access Hacks . | . . . Unauthorized Hacks 6 | . 6 . Terminals 4 | . 4 . Assimilate 1 | . 1 . Botnet 2 | . 2 . Operators 1 | . 1 . Fabricators . | . . . Repair Stations . | . . . Recycling Units 2 | . 2 . Tunnel 2 | . 2 . Scanalyzers . | . . . Garrison Access . | . . . Data Cores Recovered . | . . . Used . | . . . Hacking Detections 3 | . 3 . Full Trace Events 1 | . 1 . Feedback Events . | . . . Feedback Blocked . | . . . Robot Schematics Acquired . | . . . Robots Built . | . . . Matter . | . . . Time . | . . . Total Robot Build Rating . | . . . Part Schematics Acquired 1 | . 1 . Parts Built . | . . . Matter . | . . . Time . | . . . Total Part Build Rating . | . . . Parts Repaired . | . . . Time . | . . . Parts Recycled . | . . . Recycled Matter . | . . . Retrieved Matter . | . . . Retrieved Components . | . . . Parts Scanalyzed . | . . . Part Schematics Acquired . | . . . Parts Damaged . | . . . Bothacking | -11 -10 -10 ------------ Run | Scr Mat Min Used RIF Installer . | . . . Robots Hacked . | . . . Non-combat . | . . . Combat . | . . . Robot Hacks Applied . | . . . Relay Couplers Released . | . . . Robots Rewired . | . . . Allies Hacked . | . . . Hacks Repelled . | . . . Allies | -11 -10 -10 -------- Run | Scr Mat Min Total Allies 2 | . 1 1 Largest Group 2 | . 1 2 Highest-Rated Group 41 | . 10 41 Highest-Rated Ally 31 | . 10 31 Total Orders . | . . . Ally Attacks 4 | . . 4 Total Damage 63 | . . 63 Kills 1 | . . 1 Allies Corrupted . | . . . Allies Melted . | . . . Intel | -11 -10 -10 ------- Run | Scr Mat Min Robot Analysis Total . | . . . Derelict Logs Recovered . | . . . Drone Launches . | . . . Drone Recoveries . | . . . Exploration | -11 -10 -10 ------------- Run | Scr Mat Min Turns Passed 1936 | 136 1182 618 Spaces Moved 831 | 81 497 253 Core 15 | 15 . . Treads 776 | 66 497 213 Legs . | . . . Wheels 40 | . . 40 Hover . | . . . Flight . | . . . Fastest Speed 50 | 50 160 130 Average Speed 182 | 139 177 204 Slowest Speed 220 | 160 180 220 Overloaded Moves . | . . . Propulsion Burnouts . | . . . Robots Hopped . | . . . Cave-ins Triggered . | . . . Exploration Rate (%) 41 | 5 76 43 Regions Visited 2 Branch Regions 1 Pre-discovered Areas 2 | . 2 . Known Exits Taken . | . . . Unknown Exits Taken 2 | 1 1 . Scrap Searched 1 | . . 1 Spaces Dug . | . . . Terrain Destroyed 97 | . 8 89 Melee . | . . . Projectile . | . . . AOE 97 | . 8 89 Terrain Rammed . | . . . Walls Destroyed . | . . . Machines Disabled . | . . . Actions | -11 -10 -10 --------- Run | Scr Mat Min Total 1050 | 99 644 307 Wait 44 | 1 25 18 Move 829 | 80 496 253 Hop . | . . . Pick Up 33 | 10 20 3 Fast Attach 3 | 2 1 . Attach 10 | 4 1 5 Detach . | . . . Swap 12 | . 8 4 Drop 10 | . 10 . Fire 109 | 2 83 24 Melee . | . . . Ram . | . . . Kick . | . . . Crush . | . . . Escape Stasis . | . . . Rewire . | . . . Trap . | . . . Miscellaneous . | . . . Route ------- -11/Scrapyard -10/Materials (discovered 5 exits: [*Mat x3] / [*Min x2]) -10/Mines (discovered 1 exit: [*Mat]) History --------- Turn | Location | Event 3 | -11/Scrapyard | Discovered new exit (range 16) 137 | -11/Scrapyard | Entered Materials 303 | -10/Materials | Build established: Mutant 474 | -10/Materials | Discovered new exit (range 11) 544 | -10/Materials | Discovered new exit (range 15) 1010 | -10/Materials | Discovered new exit (range 15) 1069 | -10/Materials | Build established: Hauler-Mutant 1217 | -10/Materials | Discovered new exit (range 5) 1225 | -10/Materials | Discovered new exit (range 14) 1319 | -10/Materials | Entered Mines 1319 | -10/Mines | Accompanied by 1 ally 1447 | -10/Mines | Core integrity fell below 50% 1588 | -10/Mines | Met a Derelict testing a Signal Generator 1869 | -10/Mines | Discovered new exit (range 7) 1872 | -10/Mines | Core integrity fell below 20% 1918 | -10/Mines | Assembled infested the area 1923 | -10/Mines | Assisted by a Guerilla fighting off Assembled 1937 | -10/Mines | Destroyed by D-53 Grenadier with Mini Grenade Launcher Last Messages --------------- 01923_ C-30 ARC bursts open, deploying its payload. 01923_ D-53 Grenadier unfolds itself. 01924_ XH-DZG(h): "I'll hold them off! Go on ahead or try to find another way!" 01924_ HV Slug penetrates D-53 Grenadier. 01924_ HV Slug penetrates Wall. 01925_ The unstable cave ceiling collapses. 01925_ Lgt. Treads destroyed. 01925_ Ion Engine destroyed. 01925_ XH-DZG(h) destroyed. 01925_ U-05 Engineer lays Concrete. 01926_ U-05 Engineer builds a Wall. 01927_ Assault Rifle destroyed. 01930_ The unstable cave ceiling collapses. 01931_ U-05 Engineer lays Concrete. 01931_ Assault Rifle destroyed. 01934_ The unstable cave ceiling collapses. 01935_ Sml. Laser destroyed. 01937_ The unstable cave ceiling collapses. [Achievement: Back For More] Map ----- +----------------------------------------------------+ | | | | | | | | | | | | | | | | | | | | | | | | | ?????????????????????????????????????????????????? | | #???????????????????####?????????????????????????? | | ##??###??????????## # #?????????????????????????? | | ### ##???????### ##????????????????????????? | | #?####### #????????????#???????????? | | ### ### #= #??????????? ???????????? | | ## ### % ##?????????? ??????????? | | ### ##?##=%* %=< #????###### ??????????? | | #?####?### # #[ u #???# ??????????? | | #????### # ### %= #### ???????????? | | ##???## ##?#;# ## #?????????????? | | ????## #??# #???????????????? | | ???## #??# d #????????????????? | | ???# ##??# % # @ # #?????????????????? | | ???# ######???# d #???????????????????? | | ??## ##????????# #???????????????????? | | ?## #?????????# ##???????????????????? | | ## #?????????## # ##???????????????????? | | ##????????? ## ##????????????????????? | | ##?????????############?????????????????????? | | ##???????????????????????????????????????????? | | #????????????????????????????????????????????? | | #????????????????????????????????????????????? | | #?????????????????????????????????????????? | | # #?????????????????????????????????????????? | | ##### #???????????????????????????????????????? | | #????## #???????????????????????????????????????? | | ???????#???????????????????????????????????????? | | ###??????????????????????????????????????????????? | | ?????????????????????????????????????????????????? | | ?????????????????????????????????????????????????? | | ?????????????????????????????????????????????????? | | ?????????????????????????????????????????????????? | | ?????????????????????????????????????????????????? | | ?????????????????????????????????????????????????? | | ?????????????????????????????????????????????????? | | ?????????????????????????????????????????????????? | | ?????????????????????????????????????????????????? | +----------------------------------------------------+ Best States ------------- Heat Dissipation 25 Energy Generation 10 Energy Capacity 250 Matter Stores 300 Matter Capacity 300 Sight Range 16 Terrain Scan Density 10 Evasion (%) 50 Recoil Reduction 2 Item Schematics ----------------- Hcp. Storage Unit | -10/Materials | Hacked Robot Schematics ------------------ None Fabricated ------------ Nothing Alien Tech Used ----------------- None Achievements -------------- Back For More Challenges ------------ None Game ------ Seed RiotGaussDriver Manual? 0 Play Time 00:15:08 Cumulative 149.8 hours Start 2021.06.30 @ 18:59:08 End 2021.06.30 @ 19:17:25 Sessions 1 Manual Loads 0 Difficulty Rogue Special Mode None Game No. 50 Rogue 50 Adventurer 0 Explorer 0 Win Type - Total 2 Types 2/0/0/0/0/0/0/0/0 Lore% 66 Gallery% 75 Achievement% 60 Wizard Run 0 Options --------- ASCII 0 Keyboard 0 Movement Numpad Keybinds 0 Fullscreen 1 Font 18/SmallcapsGlow Map View 76x50 Tactical HUD 1 Map Filters NONE Filters NONE Steam 1 RUN: 6457d97f-4e47-4d70-a9f2-e887e73462e7